bitfinex/quotes_BTCUSD_20240729
["timestamp","ask_amount","ask_price","bid_price","bid_amount"]
[1722288947623,0.0151965,67404.0,67403.0,2.02069839]
[1722288947946,0.0151965,67404.0,67403.0,2.31742039]
[1722288948152,0.0151965,67404.0,67403.0,2.37438215]
[1722288948359,0.00837,67405.0,67404.0,0.776545]
[1722288948360,0.0035665,67405.0,67404.0,0.776545]
[1722288948587,0.0035665,67405.0,67404.0,1.31090594]
[1722288948844,0.0035665,67405.0,67404.0,1.70762394]
[1722288949049,0.0035665,67405.0,67404.0,1.70917814]
[1722288949503,5e-07,67405.0,67404.0,1.73117814]
[1722288949726,0.00837,67422.0,67417.0,1.138313]
[1722288949980,0.00837,67422.0,67417.0,1.67807339]
[1722288951043,0.451726,67418.0,67417.0,0.1]
[1722288951228,0.451726,67418.0,67406.0,0.1]
[1722288951229,0.005,67407.0,67406.0,0.248354]
[1722288951448,0.005,67407.0,67403.0,0.319721]
[1722288951449,0.005,67404.0,67403.0,0.023]
[1722288952095,0.0188041,67404.0,67403.0,0.023]
[1722288952299,0.005,67404.0,67403.0,0.023]
[1722288952526,0.0188041,67404.0,67403.0,0.023]
[1722288952724,0.005,67404.0,67403.0,0.023]
[1722288952915,0.0188041,67404.0,67403.0,0.023]
[1722288953118,0.005,67404.0,67403.0,0.023]
[1722288953455,0.0189232,67404.0,67403.0,0.014]
[1722288953653,0.005,67402.0,67401.0,0.0015542]
[1722288954076,0.005,67402.0,67401.0,0.1015542]
[1722288954358,0.0189232,67402.0,67401.0,0.68974959]
[1722288954557,0.005,67402.0,67401.0,0.98492639]
[1722288954709,0.02827189,67402.0,67401.0,0.98492639]
[1722288954937,0.005,67402.0,67401.0,0.98492639]
[1722288955169,0.005,67405.0,67404.0,0.841795]
[1722288955337,0.005,67405.0,67404.0,1.08489439]
[1722288956645,0.0768,67407.0,67404.0,0.34309939]
[1722288956845,0.00837,67418.0,67401.0,0.007]
[1722288956846,0.005,67414.0,67412.0,0.1]
[1722288957164,0.005,67414.0,67413.0,0.88479439]
[1722288957364,0.005,67414.0,67413.0,0.98479439]
[1722288958111,0.005,67414.0,67413.0,1.28147239]
[1722288958390,0.0768,67416.0,67413.0,1.28147239]
[1722288958391,0.0818,67416.0,67415.0,0.741672]
[1722288958955,0.00837,67418.0,67417.0,1.038313]
[1722288959171,0.01337,67418.0,67417.0,1.18141239]
[1722288959777,0.01337,67418.0,67417.0,0.88475139]
[1722288959978,0.00837,67418.0,67417.0,0.88475139]
[1722288960179,0.00837,67418.0,67417.0,1.18141239]
[1722288960407,0.00837,67418.0,67417.0,1.28141239]
[1722288961327,0.00837,67418.0,67417.0,1.63503515]
[1722288961510,0.00837,67418.0,67417.0,1.57807339]
[1722288961688,0.00837,67418.0,67417.0,1.64703515]
[1722288961891,0.00837,67418.0,67417.0,1.67003515]
[1722288962089,0.00837,67418.0,67417.0,1.65803515]
[1722288962434,0.0316364,67418.0,67417.0,1.67003515]
[1722288962663,0.0316364,67418.0,67417.0,1.65803515]
[1722288963271,0.0316364,67418.0,67417.0,1.67003515]
[1722288963478,0.0316364,67418.0,67417.0,1.36137415]
[1722288963687,0.0316364,67418.0,67417.0,1.30441239]
[1722288963893,0.0316364,67418.0,67417.0,1.29241239]
[1722288966069,0.0316364,67418.0,67417.0,1.31541239]
[1722288966270,0.0316364,67418.0,67417.0,1.29241239]
[1722288967464,0.0316364,67418.0,67417.0,0.99575139]
[1722288967663,0.0366364,67418.0,67417.0,0.99575139]
[1722288968294,0.01337,67418.0,67417.0,0.99575139]
[1722288969889,0.00837,67418.0,67417.0,0.99575139]
[1722288970089,0.01337,67418.0,67417.0,0.99575139]
[1722288970634,0.53147529,67418.0,67417.0,0.02]
[1722288970801,1.08575321,67418.0,67417.0,0.02]
[1722288971014,1.09975825,67418.0,67417.0,0.02]
[1722288971160,1.39641425,67418.0,67417.0,0.02]
[1722288971346,0.80310225,67418.0,67417.0,0.02]
[1722288971580,0.005,67407.0,67406.0,0.296708]
[1722288971779,0.005,67407.0,67406.0,0.68816139]
[1722288971989,0.1590529,67407.0,67406.0,0.68816139]
[1722288972246,0.2345529,67407.0,67406.0,0.24309939]
[1722288972624,0.25350732,67407.0,67406.0,0.24309939]
[1722288973005,0.27681669,67407.0,67406.0,0.1]
[1722288973205,0.005,67404.0,67403.0,0.248361]
[1722288973412,0.15909291,67404.0,67403.0,0.39301459]
[1722288973540,0.15909291,67404.0,67403.0,0.39146039]
[1722288973541,0.17302763,67404.0,67403.0,0.39146039]
[1722288974175,0.17302763,67404.0,67403.0,0.75972594]
[1722288974176,0.16802763,67404.0,67403.0,0.75972594]
[1722288974381,0.15409291,67404.0,67403.0,0.98490439]
[1722288974637,0.005,67407.0,67405.0,0.1]
[1722288974821,0.005,67407.0,67405.0,0.3499102]
[1722288974822,0.15408616,67406.0,67405.0,0.3499102]
[1722288975171,0.15908616,67406.0,67405.0,0.34309939]
[1722288975380,0.15408616,67406.0,67405.0,0.78816839]
[1722288975792,0.16791492,67406.0,67405.0,0.78816839]
[1722288976000,0.17735534,67406.0,67405.0,0.78816839]
[1722288976213,0.18235534,67406.0,67405.0,0.24309939]
[1722288976650,0.18235534,67406.0,67405.0,0.25109939]
[1722288976651,0.1961841,67406.0,67405.0,0.25109939]
[1722288977024,0.1961841,67406.0,67405.0,0.6973254]
[1722288977223,0.17291492,67406.0,67405.0,0.4006124]
[1722288977465,0.17291492,67406.0,67405.0,0.25109939]
[1722288977855,0.16791492,67406.0,67405.0,0.49945539]
[1722288978099,0.16791492,67406.0,67405.0,0.79616839]
[1722288978299,0.17291492,67406.0,67405.0,0.25109939]
[1722288978461,0.15908616,67406.0,67405.0,0.108]
[1722288978663,0.005,67402.0,67401.0,0.148365]
[1722288978882,0.15908616,67402.0,67401.0,0.39146439]
[1722288979843,0.15908616,67402.0,67401.0,0.24909939]
[1722288980317,0.15908616,67402.0,67401.0,0.39746439]
[1722288980495,0.15908616,67402.0,67401.0,0.69419539]
[1722288980994,0.15908616,67402.0,67401.0,0.24909939]
[1722288981309,0.17291492,67402.0,67401.0,0.24909939]
[1722288981936,0.17291492,67402.0,67401.0,0.39746439]
[1722288982148,0.17291492,67402.0,67401.0,0.40046439]
[1722288982350,0.17291492,67402.0,67401.0,0.109]
[1722288982552,0.25221492,67402.0,67401.0,0.116]
[1722288983161,0.25221492,67402.0,67401.0,0.109]
[1722288983366,0.25221492,67402.0,67401.0,0.257365]
[1722288983568,0.25221492,67402.0,67401.0,0.116]
[1722288983909,0.25221492,67402.0,67401.0,0.016]
[1722288984119,0.25221492,67402.0,67401.0,0.116]
[1722288984383,0.27548664,67402.0,67401.0,0.116]
[1722288984794,0.25221492,67402.0,67401.0,0.116]
[1722288985211,0.25221492,67402.0,67401.0,0.016]
[1722288985487,0.25221492,67402.0,67401.0,0.116]
[1722288986502,0.25221492,67402.0,67401.0,0.016]
[1722288986921,1.21781715,67402.0,67401.0,0.016]
[1722288987122,1.6250711,67402.0,67401.0,0.016]
[1722288987528,1.6250711,67402.0,67401.0,0.007]
[1722288987739,1.51454415,67402.0,67401.0,0.007]
[1722288987949,1.69118184,67402.0,67401.0,0.007]
[1722288988151,0.74185,67399.0,67398.0,0.000913]
[1722288988363,1.50186139,67399.0,67398.0,0.000913]
[1722288988595,1.58013695,67399.0,67398.0,0.000913]
[1722288990081,1.58413695,67399.0,67398.0,0.001913]
[1722288991838,1.58713695,67399.0,67398.0,0.002913]
[1722288992026,1.58413695,67399.0,67398.0,0.001913]
[1722288992240,1.58313695,67399.0,67398.0,0.001913]
[1722288992451,1.84205143,67399.0,67398.0,0.001913]
[1722288992663,2.02997634,67399.0,67398.0,0.000913]
[1722288992865,2.17786477,67399.0,67398.0,0.001913]
[1722288993096,2.24432368,67399.0,67398.0,0.001913]
[1722288993303,2.39038748,67399.0,67398.0,0.002913]
[1722288993515,2.41257604,67399.0,67398.0,0.002913]
[1722288993723,2.32096416,67399.0,67398.0,0.001913]
[1722288994113,2.32396416,67399.0,67398.0,0.002913]
[1722288994370,2.75134156,67399.0,67398.0,0.001913]
[1722288994555,2.8263111,67399.0,67398.0,0.001913]
[1722288994757,2.82930895,67399.0,67398.0,0.002913]
[1722288994921,2.92032682,67399.0,67398.0,0.002913]
[1722288995500,2.50656855,67399.0,67398.0,0.001913]
[1722288995713,2.59453034,67399.0,67398.0,0.000913]
[1722288995913,2.45158079,67399.0,67398.0,0.000913]
[1722288996085,2.55705487,67399.0,67398.0,0.002913]
[1722288996283,2.46858079,67399.0,67398.0,0.002913]
[1722288997329,2.55704414,67399.0,67398.0,0.002913]
[1722288997531,2.57011604,67399.0,67398.0,0.002913]
[1722288997736,2.54796203,67399.0,67398.0,0.002913]
[1722288997945,2.37005485,67399.0,67398.0,0.002913]
[1722288998162,2.42374493,67399.0,67398.0,0.002913]
[1722288998367,2.35745457,67399.0,67398.0,0.002913]
[1722288998572,2.39163386,67399.0,67398.0,0.002913]
[1722288998979,2.36835474,67399.0,67398.0,0.002913]
[1722288999315,2.4424242,67399.0,67398.0,0.002913]
[1722288999512,2.42029852,67399.0,67398.0,0.002913]
[1722288999713,2.65423743,67399.0,67398.0,0.002913]
[1722288999932,2.46727484,67399.0,67398.0,0.002913]
[1722289000082,2.51923407,67399.0,67398.0,0.002913]
[1722289000285,2.32417545,67399.0,67398.0,0.002913]
[1722289000486,2.38613468,67399.0,67398.0,0.002913]
[1722289000713,2.37613468,67399.0,67398.0,0.002913]
[1722289000910,2.46689539,67399.0,67398.0,0.002913]
[1722289001333,2.47689539,67399.0,67398.0,0.002913]
[1722289001692,2.38613193,67399.0,67398.0,0.002913]
[1722289001908,2.91680658,67399.0,67398.0,0.002913]
[1722289002103,0.005,67369.0,67368.0,0.0015542]
[1722289002310,0.15908616,67369.0,67368.0,0.0015542]
[1722289002513,0.17259364,67369.0,67368.0,0.0015542]
[1722289002718,0.005,67368.0,67367.0,0.0643]
[1722289003080,0.15908616,67368.0,67367.0,0.0643]
[1722289003231,0.17259364,67368.0,67367.0,0.0643]
[1722289003639,0.32103164,67368.0,67367.0,0.0643]
[1722289003837,0.17259364,67368.0,67367.0,0.0643]
[1722289004452,0.32103164,67368.0,67367.0,0.0643]
[1722289005065,0.17259364,67368.0,67367.0,0.0643]
[1722289005915,0.19587784,67368.0,67367.0,0.0643]
[1722289006125,0.17459364,67368.0,67367.0,0.0643]
[1722289006827,0.32303164,67368.0,67367.0,0.0643]
[1722289007248,0.005,67367.0,67366.0,0.1]
[1722289007539,0.005,67364.0,67363.0,0.0613]
[1722289007692,0.15908616,67364.0,67363.0,0.0613]
[1722289008043,0.17259364,67364.0,67363.0,0.0613]
[1722289008261,0.005,67362.0,67361.0,0.1]
[1722289008451,0.15908616,67362.0,67361.0,0.1]
[1722289009009,0.17259364,67362.0,67361.0,0.1]
[1722289009543,0.19587933,67362.0,67361.0,0.1]
[1722289010370,0.17659364,67362.0,67361.0,0.248453]
[1722289010780,0.17359364,67362.0,67361.0,0.248453]
[1722289011379,0.17359364,67362.0,67361.0,0.1]
[1722289011776,0.17359364,67362.0,67361.0,0.248453]
[1722289012602,0.1737065,67362.0,67361.0,0.1]
[1722289012803,0.16019902,67362.0,67361.0,0.148453]
[1722289012984,0.17262064,67362.0,67361.0,0.248453]
[1722289013786,0.19590622,67362.0,67361.0,0.248453]
[1722289014425,0.19590622,67362.0,67361.0,0.54536]
[1722289014739,0.19590622,67362.0,67361.0,0.248453]
[1722289015328,0.17262064,67362.0,67361.0,0.248453]
[1722289016286,0.17262064,67362.0,67361.0,0.24929827]
[1722289016441,0.17262064,67362.0,67361.0,0.248453]
[1722289016640,0.17262064,67362.0,67361.0,0.54628246]
[1722289017016,0.17262064,67362.0,67361.0,0.54536]
[1722289017225,0.17262064,67362.0,67361.0,0.1]
[1722289017428,0.17262064,67362.0,67361.0,0.14952243]
[1722289017632,0.17262064,67362.0,67361.0,0.148453]
[1722289017934,0.17262064,67362.0,67361.0,0.248453]
[1722289018158,0.17262064,67362.0,67361.0,0.1]
[1722289018804,0.17262064,67362.0,67361.0,0.10084767]
[1722289018805,0.19590618,67362.0,67361.0,0.10084767]
[1722289019232,0.19590618,67362.0,67361.0,0.248453]
[1722289020405,0.19590618,67362.0,67361.0,1.42517339]
[1722289020617,0.17748456,67362.0,67361.0,1.42517339]
[1722289021035,0.02328554,67362.0,67361.0,1.42517339]
[1722289021322,0.17745473,67362.0,67361.0,1.42517339]
[1722289021708,0.02328554,67362.0,67361.0,1.42517339]
[1722289022267,0.02328554,67362.0,67361.0,2.01898739]
[1722289022451,0.02328554,67362.0,67361.0,1.8184566]
[1722289024310,0.02328554,67362.0,67361.0,2.1501136]
[1722289024669,0.005,67379.0,67378.0,0.148416]
[1722289024870,0.005,67379.0,67378.0,1.42781139]
[1722289024871,0.15413132,67379.0,67378.0,1.42781139]
[1722289025068,0.4753,67380.0,67379.0,0.80597]
[1722289025274,0.4753,67380.0,67379.0,1.04906939]
[1722289025729,0.4753,67380.0,67379.0,1.34589739]
[1722289026604,0.4763,67380.0,67379.0,1.34689739]
[1722289027971,0.001,67380.0,67379.0,1.34689739]
[1722289029626,0.005,67382.0,67381.0,1.138866]
[1722289029796,0.005,67382.0,67381.0,1.38196539]
[1722289031555,0.006,67382.0,67381.0,1.38296539]
[1722289034263,0.006,67382.0,67381.0,1.139866]
[1722289034717,0.02927747,67382.0,67381.0,1.139866]
[1722289035019,0.02827747,67382.0,67381.0,1.138866]
[1722289036555,0.02827747,67382.0,67381.0,1.139866]
[1722289036556,0.02927747,67382.0,67381.0,1.139866]
[1722289036778,0.03027747,67382.0,67381.0,1.140866]
[1722289037444,0.03009889,67382.0,67381.0,1.140866]
[1722289037665,0.02909889,67382.0,67381.0,1.139866]
[1722289038945,0.02909889,67382.0,67381.0,1.138866]
[1722289038946,0.02809889,67382.0,67381.0,1.138866]
[1722289040748,0.02909889,67382.0,67381.0,1.139866]
[1722289040954,0.03009889,67382.0,67381.0,1.140866]
[1722289041180,0.02909889,67382.0,67381.0,1.282566]
[1722289041583,0.02909889,67382.0,67381.0,1.283566]
[1722289041584,0.03009889,67382.0,67381.0,1.283566]
[1722289042002,0.00682142,67382.0,67381.0,1.283566]
[1722289043106,0.00682142,67382.0,67381.0,1.295566]
[1722289043306,0.00682142,67382.0,67381.0,1.283566]
[1722289044106,0.00582142,67382.0,67381.0,1.282566]
[1722289044517,0.00682142,67382.0,67381.0,1.283566]
[1722289045276,0.03009871,67382.0,67381.0,1.283566]
[1722289045504,0.00682142,67382.0,67381.0,1.283566]
[1722289046771,0.00682142,67382.0,67381.0,1.42666539]
[1722289047279,0.00682142,67382.0,67381.0,1.43866539]
[1722289047514,0.00682142,67382.0,67381.0,1.72348439]
[1722289048303,0.00682142,67382.0,67381.0,1.73548439]
[1722289048552,0.00682142,67382.0,67381.0,1.72348439]
[1722289048730,0.00682142,67382.0,67381.0,1.73548439]
[1722289049068,0.03009845,67382.0,67381.0,1.73548439]
[1722289049420,0.18421759,67382.0,67381.0,1.73548439]
[1722289049630,0.18421759,67382.0,67381.0,1.80478204]
[1722289049821,0.18421759,67382.0,67381.0,1.79478204]
[1722289050026,0.18421759,67382.0,67381.0,1.80678204]
[1722289050633,0.18421759,67382.0,67381.0,1.73548439]
[1722289050796,0.18421759,67382.0,67381.0,1.8066176]
[1722289053519,0.18421759,67382.0,67381.0,1.8946176]
[1722289053764,0.18421759,67382.0,67381.0,1.82348439]
[1722289053966,0.18421759,67382.0,67381.0,1.90570099]
[1722289054627,0.17939617,67382.0,67381.0,1.89370099]
[1722289054808,0.18421759,67382.0,67381.0,1.89370099]
[1722289055024,0.15611914,67382.0,67381.0,1.89370099]
[1722289055202,0.16094056,67382.0,67381.0,1.89370099]
[1722289057115,0.16094056,67382.0,67381.0,1.89397748]
[1722289058414,0.18421723,67382.0,67381.0,1.89397748]
[1722289058756,0.15611914,67382.0,67381.0,1.89397748]
[1722289059316,0.16094056,67382.0,67381.0,1.89397748]
[1722289059498,0.15611914,67382.0,67381.0,1.89397748]
[1722289059718,0.16094056,67382.0,67381.0,1.89397748]
[1722289060382,0.15611914,67382.0,67381.0,1.89380967]
[1722289061373,0.15611914,67382.0,67381.0,1.90580967]
[1722289061808,0.15611914,67382.0,67381.0,1.89380967]
[1722289061979,0.17939545,67382.0,67381.0,1.89473367]
[1722289062385,0.18023545,67382.0,67381.0,1.89473367]
[1722289062613,0.18023545,67382.0,67381.0,1.90673367]
[1722289063198,0.15695914,67382.0,67381.0,1.90673367]
[1722289063830,0.15695914,67382.0,67381.0,1.90642084]
[1722289063831,0.00284,67382.0,67381.0,1.90642084]
[1722289064181,0.00284,67382.0,67381.0,1.89442084]
[1722289064389,0.16177682,67382.0,67381.0,1.90642084]
[1722289064633,0.16177682,67382.0,67381.0,1.89442084]
[1722289064837,0.15893682,67382.0,67381.0,1.89442084]
[1722289065039,0.146073,67472.0,67404.0,0.148359]
[1722289065040,0.00083,67405.0,67404.0,0.148359]
[1722289065299,0.00834592,67405.0,67404.0,0.853795]
[1722289065524,0.00083,67405.0,67404.0,1.36224007]
[1722289065734,0.00083,67405.0,67404.0,1.29361239]
[1722289065947,0.00083,67405.0,67404.0,1.36423144]
[1722289066155,0.00083,67405.0,67404.0,1.35223144]
[1722289066603,0.00083,67405.0,67404.0,1.28161239]
[1722289066810,0.00083,67405.0,67404.0,1.57833039]
[1722289067034,0.00083,67405.0,67404.0,1.58833039]
[1722289067267,0.00083,67405.0,67404.0,1.57833039]
[1722289067935,0.00183,67405.0,67404.0,1.65063039]
[1722289068145,0.00183,67405.0,67404.0,1.65263039]
[1722289068784,0.00183,67405.0,67404.0,1.64063039]
[1722289069428,0.00183,67405.0,67404.0,1.65263039]
[1722289069634,0.00183,67405.0,67404.0,1.64063039]
[1722289070006,0.00083,67405.0,67404.0,1.63963039]
[1722289070518,0.00083,67405.0,67404.0,1.65163039]
[1722289070858,0.00083,67405.0,67404.0,1.93634839]
[1722289071069,0.00083,67405.0,67404.0,1.94334839]
[1722289071070,0.00183,67405.0,67404.0,1.94334839]
[1722289071470,0.02509809,67405.0,67404.0,1.94334839]
[1722289071808,0.00183,67405.0,67404.0,1.95534839]
[1722289072011,0.00183,67405.0,67404.0,1.94334839]
[1722289072208,0.00183,67405.0,67404.0,1.95534839]
[1722289075065,0.02509809,67405.0,67404.0,1.95534839]
[1722289075535,0.00183,67405.0,67404.0,1.95534839]
[1722289076919,0.00183,67405.0,67404.0,1.96437008]
[1722289077376,0.00183,67405.0,67404.0,1.95237008]
[1722289078049,0.00183,67405.0,67404.0,2.09632008]
[1722289078265,1e-06,67405.0,67404.0,2.18941298]
[1722289078470,1e-06,67405.0,67404.0,2.19074277]
[1722289078687,1e-06,67405.0,67404.0,2.48746077]
[1722289078873,4.7e-07,67405.0,67404.0,2.45713098]
[1722289079076,0.00837,67418.0,67417.0,1.499774]
[1722289079276,0.01613581,67418.0,67417.0,1.74287339]
[1722289079489,0.00837,67418.0,67417.0,1.74287339]
[1722289080501,0.00837,67418.0,67417.0,1.75487339]
[1722289080715,0.00837,67418.0,67417.0,1.74287339]
[1722289081827,0.00837,67418.0,67417.0,1.75487339]
[1722289082279,0.00837,67418.0,67417.0,1.76487339]
[1722289082737,0.00937,67418.0,67417.0,1.76287339]
[1722289084218,0.00937,67418.0,67417.0,1.69807339]
[1722289084539,0.03263503,67418.0,67417.0,1.69807339]
[1722289084935,0.03263503,67418.0,67417.0,1.40141239]
[1722289085781,0.00937,67418.0,67417.0,1.40141239]
[1722289086137,0.00937,67418.0,67417.0,1.41020441]
[1722289086348,0.00937,67418.0,67417.0,1.40141239]
[1722289088526,0.03263587,67418.0,67417.0,1.40141239]
[1722289089145,0.00937,67418.0,67417.0,1.40141239]
[1722289090368,0.00937,67418.0,67417.0,1.83847339]
[1722289090608,0.00937,67418.0,67417.0,1.40141239]
[1722289090754,0.00937,67418.0,67417.0,1.85977339]
[1722289090954,0.00937,67418.0,67417.0,1.89477339]
[1722289091159,0.00937,67418.0,67417.0,2.04483487]
[1722289091472,0.00937,67418.0,67417.0,2.39124587]
[1722289091677,0.00937,67418.0,67417.0,2.36924587]
[1722289091910,0.00937,67418.0,67417.0,2.07258487]
[1722289092264,0.00937,67418.0,67417.0,2.04283487]
[1722289092465,0.00937,67418.0,67417.0,2.03283487]
[1722289092690,0.00937,67418.0,67417.0,2.73283487]
[1722289092891,0.00837,67418.0,67417.0,2.72283487]
[1722289093104,0.00837,67418.0,67417.0,2.74483487]
[1722289093317,0.00837,67418.0,67417.0,2.72283487]
[1722289093516,0.00837,67418.0,67417.0,2.75258487]
[1722289093847,0.00837,67418.0,67417.0,2.76658487]
[1722289094065,0.00837,67418.0,67417.0,2.75258487]
[1722289094385,0.00837,67418.0,67417.0,2.77458487]
[1722289094676,0.00837,67418.0,67417.0,2.76658487]
[1722289094957,0.00837,67418.0,67417.0,2.07958487]
[1722289095262,0.00837,67418.0,67417.0,2.08078816]
[1722289095797,0.00837,67418.0,67417.0,2.75378816]
[1722289096059,0.03163235,67418.0,67417.0,2.75378816]
[1722289096369,0.00837,67418.0,67417.0,2.08178816]
[1722289098533,0.00837,67418.0,67417.0,2.08166825]
[1722289098732,0.00837,67418.0,67417.0,2.06766825]
[1722289098940,0.00937,67418.0,67417.0,2.08166825]
[1722289099967,0.00937,67418.0,67417.0,2.00366825]
[1722289100178,0.00937,67418.0,67417.0,2.10366825]
[1722289100395,0.00937,67418.0,67417.0,2.10369445]
[1722289100820,0.00937,67418.0,67417.0,2.08169445]
[1722289101025,0.00937,67418.0,67417.0,1.56658345]
[1722289101239,0.00937,67418.0,67417.0,1.49411239]
[1722289102106,0.00937,67418.0,67417.0,1.52386239]
[1722289103438,0.00937,67418.0,67417.0,1.53586239]
[1722289103640,0.00937,67418.0,67417.0,1.52386239]
[1722289103842,0.00937,67418.0,67417.0,1.53386239]
[1722289104056,0.00937,67418.0,67417.0,1.52386239]
[1722289104259,0.0326331,67418.0,67417.0,1.52386239]
[1722289104940,0.0326331,67418.0,67417.0,1.53386239]
[1722289105143,0.00937,67418.0,67417.0,1.53386239]
[1722289106388,0.00937,67418.0,67417.0,1.53586239]
[1722289107000,0.00937,67418.0,67417.0,1.40941239]
[1722289107204,0.08567,67418.0,67417.0,1.53916239]
[1722289107872,0.08467,67418.0,67417.0,1.52516239]
[1722289108074,0.08567,67418.0,67417.0,1.53916239]
[1722289108275,0.08567,67418.0,67417.0,0.028]
[1722289108679,0.08567,67418.0,67408.0,0.1]
[1722289108680,0.1383,67417.0,67410.0,0.0086661]
[1722289108884,0.1383,67417.0,67411.0,0.148342]
[1722289108885,0.0763,67417.0,67411.0,0.148342]
[1722289109097,0.00937,67418.0,67417.0,0.014]
[1722289109300,0.157698,67418.0,67417.0,0.014]
[1722289109506,0.34092264,67418.0,67417.0,0.014]
[1722289109712,0.34092264,67418.0,67417.0,0.019]
[1722289109713,0.47922264,67418.0,67417.0,0.019]
[1722289109923,1.13894386,67418.0,67417.0,0.019]
[1722289110320,1.07253464,67418.0,67417.0,0.019]
[1722289110524,1.16108027,67418.0,67417.0,0.019]
[1722289110728,1.07153464,67418.0,67417.0,0.005]
[1722289110970,1.36819064,67418.0,67417.0,0.005]
[1722289111377,1.18308575,67418.0,67417.0,0.005]
[1722289111615,1.07231268,67418.0,67417.0,0.005]
[1722289111820,1.21541207,67418.0,67417.0,0.005]
[1722289112027,0.062,67410.0,67405.0,0.000913]
[1722289112232,0.29424662,67409.0,67405.0,0.000913]
[1722289112432,0.224648,67409.0,67405.0,0.000913]
[1722289112567,0.0763,67407.0,67405.0,0.000913]
[1722289113245,0.062,67406.0,67405.0,0.000913]
[1722289113483,0.583363,67406.0,67405.0,0.000913]
[1722289114441,0.880072,67406.0,67405.0,0.000913]
[1722289114656,0.583363,67406.0,67405.0,0.000913]
[1722289115673,0.880072,67406.0,67405.0,0.000913]
[1722289116281,0.90334391,67406.0,67405.0,0.000913]
[1722289117799,0.880072,67406.0,67405.0,0.000913]
[1722289119422,1.176781,67406.0,67405.0,0.000913]
[1722289119634,1.21140289,67406.0,67405.0,0.000913]
[1722289119982,0.91469389,67406.0,67405.0,0.000913]
[1722289120440,0.880072,67406.0,67405.0,0.000913]
[1722289120882,0.9033446,67406.0,67405.0,0.000913]
[1722289121290,0.880072,67406.0,67405.0,0.000913]
[1722289121464,0.883072,67406.0,67405.0,0.001913]
[1722289121670,0.890072,67406.0,67405.0,0.002913]
[1722289122178,0.883072,67406.0,67405.0,0.001913]
[1722289123140,0.890072,67406.0,67405.0,0.002913]
[1722289125822,0.91334462,67406.0,67405.0,0.002913]
[1722289126223,0.890072,67406.0,67405.0,0.002913]
[1722289127356,1.186781,67406.0,67405.0,0.002913]
[1722289127531,1.30230711,67406.0,67405.0,0.002913]
[1722289127734,1.186781,67406.0,67405.0,0.002913]
[1722289129124,1.21005404,67406.0,67405.0,0.002913]
[1722289129359,1.32558318,67406.0,67405.0,0.002913]
[1722289130305,1.39957442,67406.0,67405.0,0.002913]
[1722289130508,1.39883432,67406.0,67405.0,0.002913]
[1722289130869,1.28330518,67406.0,67405.0,0.002913]
[1722289131058,1.39928839,67406.0,67405.0,0.002913]
[1722289132228,1.49869617,67406.0,67405.0,0.002913]
[1722289133611,1.48662315,67406.0,67405.0,0.002913]
[1722289134219,1.48705921,67406.0,67405.0,0.002913]
[1722289136007,1.40065921,67406.0,67405.0,0.002913]
[1722289136241,1.48705921,67406.0,67405.0,0.002913]
[1722289136723,1.40065921,67406.0,67405.0,0.002913]
[1722289136943,1.48705921,67406.0,67405.0,0.002913]
[1722289137618,1.4015071,67406.0,67405.0,0.002913]
[1722289137842,1.45340305,67406.0,67405.0,0.002913]
[1722289138075,1.45340262,67406.0,67405.0,0.002913]
[1722289138513,1.54984229,67406.0,67405.0,0.002913]
[1722289139434,1.63624229,67406.0,67405.0,0.002913]
[1722289139657,1.54984229,67406.0,67405.0,0.002913]
[1722289139878,1.63624229,67406.0,67405.0,0.002913]
[1722289140103,1.54984229,67406.0,67405.0,0.002913]
[1722289140332,1.63624229,67406.0,67405.0,0.002913]
[1722289140558,1.77934168,67406.0,67405.0,0.002913]
[1722289140785,1.78074002,67406.0,67405.0,0.002913]
[1722289141291,1.78074002,67406.0,67405.0,0.000913]
[1722289141292,1.77074002,67406.0,67405.0,0.000913]
[1722289141736,1.69334002,67406.0,67405.0,0.001913]
[1722289141959,1.77974002,67406.0,67405.0,0.001913]
[1722289142178,1.77074002,67406.0,67405.0,0.000913]
[1722289142403,1.77974002,67406.0,67405.0,0.001913]
[1722289142651,1.78274002,67406.0,67405.0,0.002913]
[1722289142877,1.51273933,67406.0,67405.0,0.001913]
[1722289143120,1.78230678,67406.0,67405.0,0.001913]
[1722289143370,1.78530678,67406.0,67405.0,0.002913]
[1722289146210,1.7851886,67406.0,67405.0,0.002913]
[1722289148195,1.76191556,67406.0,67405.0,0.002913]
[1722289149350,1.49246629,67406.0,67405.0,0.002913]
[1722289149570,1.76175655,67406.0,67405.0,0.002913]
[1722289150948,1.80601082,67406.0,67405.0,0.002913]
[1722289151606,1.85138153,67406.0,67405.0,0.002913]
[1722289152465,1.78503047,67406.0,67405.0,0.002913]
[1722289152599,1.78572168,67406.0,67405.0,0.002913]
[1722289152824,1.89630678,67406.0,67405.0,0.002913]
[1722289153023,1.93761045,67406.0,67405.0,0.002913]
[1722289153223,1.90526957,67406.0,67405.0,0.002913]
[1722289153464,1.80270623,67406.0,67405.0,0.002913]
[1722289153634,1.88503974,67406.0,67405.0,0.002913]
[1722289154459,2.01774186,67406.0,67405.0,0.002913]
[1722289155343,1.88503974,67406.0,67405.0,0.002913]
[1722289156029,1.88517016,67406.0,67405.0,0.002913]
[1722289156246,1.86189624,67406.0,67405.0,0.002913]
[1722289156508,1.87661709,67406.0,67405.0,0.002913]
[1722289157590,1.86189624,67406.0,67405.0,0.002913]
[1722289158036,2.01176653,67406.0,67405.0,0.002913]
[1722289158260,1.86189624,67406.0,67405.0,0.002913]
[1722289158477,2.01176653,67406.0,67405.0,0.002913]
[1722289158730,1.77549624,67406.0,67405.0,0.002913]
[1722289158942,1.86189624,67406.0,67405.0,0.002913]
[1722289159176,1.50538435,67406.0,67405.0,0.002913]
[1722289159409,2.01306144,67406.0,67405.0,0.002913]
[1722289159628,2.03633534,67406.0,67405.0,0.002913]
[1722289159865,1.97507544,67406.0,67405.0,0.002913]
[1722289160326,1.74888249,67406.0,67405.0,0.002913]
[1722289160779,1.55691742,67406.0,67405.0,0.002913]
[1722289161012,1.64331742,67406.0,67405.0,0.002913]
[1722289162414,1.37193328,67406.0,67405.0,0.002913]
[1722289162604,1.64543919,67406.0,67405.0,0.002913]
[1722289163245,1.55903919,67406.0,67405.0,0.002913]